[Event "Czech Open-Rapid 2022"]
[Site "Pardubice"]
[Date "2022.07.21"]
[Round "6.17"]
[White "Jurek, Josef"]
[Black "Jares, Michal"]
[Result "1/2-1/2"]
[ECO "A04"]
[WhiteElo "2200"]
[BlackElo "2208"]
[Annotator "TA"]
[PlyCount "152"]
[EventDate "2022.07.20"]
[EventType "swiss"]
[EventCountry "CZE"]
[SourceTitle "playchess.com"]
[Source "ChessBase"]
[SourceQuality "1"]
[TimeControl "1200+10"]

{[%evp 15,152,25,38,39,66,59,60,51,51,53,59,63,52,42,78,76,77,79,77,65,89,87,89,79,133,99,159,120,130,136,137,138,116,118,152,145,162,164,219,195,204,205,204,177,290,164,165,175,174,174,173,104,83,94,106,106,104,104,106,100,207,75,118,75,51,0,979,0,497,479,421,107,107,107,107,107,107,83,97,75,104,96,90,0,104,104,123,75,107,101,123,123,123,108,123,70,70,68,147,147,147,147,147,9,9,9,9,9,9,8,14,9,9,9,9,9,14,20,42,43,185,9,9,9,9,9,9,9,9,9,9,9,9,9,9,9,9,9,10]} 1. Nf3 c5 2. c4 Nc6 3. Nc3 g6 4. e3 Bg7 5. d4 cxd4 6. exd4 d6 7. d5 Ne5 {7...Nb8 is not played anymore.} 8. Nxe5 Bxe5 9. Bd3 {A35: Symmetrical English: 2 Nc3 Nc6 3 Nf3.} Bg7 10. O-O Nf6 11. h3 {White is slightly better.} O-O 12. Re1 {[#]} Bd7 $146 ({Predecessor:} 12... a6 13. Bg5 Re8 14. Qd2 Bd7 15. a4 Qa5 16. Qc2 Rac8 17. Qb3 Qc7 18. Be3 e6 {0-1 (60) Pantsulaia,L (2605)-Zwardon,V (2412) Chess.com INT 2018}) 13. Bg5 Re8 14. Qd2 Qc8 15. Rac1 {White is more active.} Bf5 16. Bxf5 Qxf5 17. b3 Rac8 18. Re2 a6 {[%cal Ob7b5]} 19. a4 {Inhibits b5.} Kf8 (19... Rb8 $142) 20. Rce1 $16 Rc7 (20... b6 $142 21. Bf4 Qd7) 21. Bh6 Kg8 22. Bxg7 Kxg7 23. Qd4 Kg8 24. a5 h5 25. Na4 Kg7 26. Nb6 Kg8 (26... g5 $142 27. b4 Qf4) 27. b4 $18 Kf8 28. c5 {aiming for cxd6.} Rd8 29. Re3 dxc5 (29... g5 $142 30. Rf3 Qg6) 30. bxc5 (30. Qc3 $142) 30... Rxd5 31. Nxd5 Qxd5 32. Qb4 Qc6 33. Re5 (33. Rd1 $18) 33... e6 $16 34. Rc1 Kg8 35. Re2 {[%cal Be5e2,Be2a2,Ba2b2,Bb2b7][%mdl 32]} Nd5 36. Qd4 Qb5 37. Ra2 Rd7 (37... Qe8 $16) 38. Qe5 (38. c6 $1 $18 {[%cal Rc6d7]} bxc6 39. Rb2 Qxa5 40. Rb8+ Rd8 41. Qa1) 38... Rc7 39. Rb2 Qxa5 40. c6 (40. Rcb1 $14 Qc3 41. Qxc3 Nxc3 42. Rxb7 Rxc5 43. R1b6) 40... Qa3 $2 {[%mdl 8192]} (40... b5 $11) 41. Rcb1 $2 ({White must play} 41. cxb7 $18 Rxc1+ 42. Kh2) 41... Rxc6 $2 {[%mdl 8192]} (41... b5 $11) 42. Rxb7 $18 {Hoping for Rb8+.} Rc1+ 43. Rxc1 $2 (43. Kh2 $1 $18 {is the precise move to win.} Rxb1 44. Rxb1) 43... Qxc1+ {[%mdl 4096] Endgame KQR-KQN} 44. Kh2 {Intending Rb8+ and mate.} Qf4+ 45. Qxf4 Nxf4 $16 {KR-KN} 46. Ra7 Nd3 47. f3 {[%cal Bf2f3,Bf3f4,Bf4g5][%mdl 1056] White has strong compensation.} ({Don't play} 47. Rxa6 Nxf2 48. Kg3 Nd3 $11) 47... Nb4 48. Rb7 Nd5 49. Ra7 Nb4 $1 50. Kg3 Kg7 51. Kf2 (51. f4 $142) 51... Kf6 52. f4 Nd3+ 53. Ke3 Nb4 54. Kf3 Kg7 55. g4 (55. g3 $16) 55... hxg4+ $1 $14 56. hxg4 g5 ({Black should try} 56... e5 $1 $14) 57. fxg5 $16 Kg6 58. Kg3 $1 Nd3 {[#]} 59. Kh4 ({Reject} 59. Rxa6 $6 Kxg5 60. Rc6 Nf4 $11) (59. Rc7 $1 $16) 59... Ne5 $11 60. Rxa6 {Black should prevent Ra3.} Nf3+ 61. Kg3 Nxg5 62. Kf4 Kf6 63. Ra5 Nh3+ 64. Kg3 Ng5 65. Kh4 Nf3+ 66. Kh5 Ne5 67. Rb5 Nd3 {[#]} (67... Nc4 $14) 68. g5+ $2 (68. Kh6 $1 $18 {Strongly threatening g5+.} Nf2 69. g5+ Ke7 70. Rb7+ Kf8 71. Rb4) 68... Kg7 {The position is equal.} 69. Rb7 Nf4+ 70. Kg4 Ng6 71. Rb5 Ne7 72. Kh5 Ng6 73. Rb4 Ne7 74. Kg4 Ng6 75. Rb7 Ne5+ 76. Kf4 Ng6+ {Weighted Error Value: White=0.44/Black=0.28 (precise)} 1/2-1/2

[Event "Czech Open-Rapid 2022"]
[Site "Pardubice"]
[Date "2022.07.21"]
[Round "6.18"]
[White "Ibrahim, Emad Eldin"]
[Black "Brejnik, Gustav"]
[Result "0-1"]
[ECO "B13"]
[WhiteElo "2028"]
[BlackElo "2292"]
[Annotator "TA"]
[PlyCount "56"]
[EventDate "2022.07.20"]
[EventType "swiss"]
[EventCountry "CZE"]
[SourceTitle "playchess.com"]
[Source "ChessBase"]
[SourceQuality "1"]
[TimeControl "1200+10"]

{[%evp 16,56,22,20,15,16,12,16,22,14,51,48,45,55,42,43,37,41,92,92,91,75,212,0,0,0,0,-96,-105,-115,-90,-91,0,0,0,0,0,0,0,0,0,0,428]} 1. e4 {[%emt 0:00:02]} c6 {[%emt 0:00:01]} 2. d4 {[%emt 0:00:02]} d5 {[%emt 0:00:01]} 3. exd5 {[%emt 0:00:02]} cxd5 {[%emt 0:00:00]} 4. c4 {[%emt 0:00:02]} Nf6 {[%emt 0:00:02]} 5. Nc3 {[%emt 0:00:02]} Nc6 {[%emt 0:00:02]} 6. Bg5 {[%emt 0:00:05]} dxc4 {[%emt 0:00:08]} 7. Bxc4 {[%emt 0:00:10]} Qxd4 {[%emt 0:03:23]} 8. Qxd4 {[%emt 0:00:02]} Nxd4 {[%emt 0:00:01]} 9. O-O-O {[%emt 0:00:18]} e5 {[%emt 0:00:01] B13: Caro-Kann: Exchange Variation and Panov-Botvinnik Attack.} 10. f4 {[%emt 0:00:24]} Bg4 11. Nf3 $1 {[%emt 0:00:13]} Bxf3 {[%emt 0:02:33] 11...Bxf3 is better than 11...Nxf3.} 12. gxf3 {[%emt 0:00:11]} Rc8 {[%emt 0:00:39]} 13. fxe5 {[%emt 0:00:30]} Rxc4 {[%emt 0:00:15]} 14. exf6 {[%emt 0:00:07] [#] Threatens to win with Rhe1+.} Ne6 {[%emt 0:03:48]} 15. Rhe1 {[%emt 0:03:15] White wants to mate with fxg7.} g6 {[%emt 0:00:59]} 16. Kb1 {[%emt 0:01:46]} Bb4 {[%emt 0:02:55]} (16... h5 $14) 17. Bh6 $16 {[%emt 0:01:04][%cal Oc3e4] [#]} Bxc3 $146 {[%emt 0:02:03]} ({Predecessor:} 17... Rg8 18. Bg7 Bxc3 19. bxc3 Rc7 20. Kb2 Rd7 21. Rxe6+ {1-0 (21) Gibicar,D (2210)-Padva,L (1956) Borken 2016}) 18. bxc3 {[%emt 0:00:05]} Rxc3 {[%emt 0:00:02]} (18... Rg8 $16 {might work better.}) 19. f4 $2 {[%emt 0:00:21]} (19. Bg7 $18) 19... Rc7 {[%emt 0:00:57]} 20. Rd3 {[%emt 0:01:50]} Rd7 {[%emt 0:00:05]} 21. Rh3 {[%emt 0:00:02]} (21. Red1 $1 $11 {remains equal.} Rxd3 22. Rxd3) 21... Kd8 $17 {[%emt 0:00:41]} 22. Bg7 {[%emt 0:00:16]} Re8 {[%emt 0:02:28]} ({Don't do} 22... Nxf4 23. Rf3 Ng2 24. Re2 $16) 23. Rxh7 {[%emt 0:00:06]} Nxg7 {[%emt 0:00:02]} (23... Rd6 $17 {And now ...Rb6+ would win.} 24. Bh6 Nd4 25. Rxe8+ Kxe8 26. Rh8+ Kd7) 24. fxg7 $11 {[%emt 0:00:17] [#] White threatens Rxe8+ and mate. The position is equal.} Rxe1+ {[%emt 0:00:01]} 25. Kc2 {[%emt 0:00:02] aiming for Rh3.} Re2+ {[%emt 0:01:04]} 26. Kc3 {[%emt 0:00:05] Black must now prevent Rh3.} Re3+ {[%emt 0:00:09]} 27. Kc2 {[%emt 0:00:37]} Re2+ {[%emt 0:00:03]} 28. Kc3 {[%emt 0:00:02] Strongly threatening Rh3.} Re4 $2 {[%mdl 40960] Weighted Error Value: White=0.19 (very precise) /Black=0.20 (precise) . Loss on time!?} (28... Re3+ $11 {and Black has nothing to worry.} 29. Kb4 Re4+ 30. Kb3 Re3+ 31. Kb4 Re4+ 32. Kb3 Re3+ 33. Kb4) 0-1

[Event "Czech Open-Rapid 2022"]
[Site "Pardubice"]
[Date "2022.07.21"]
[Round "6.19"]
[White "Ret, Adam Josef"]
[Black "Sarkar, Justin"]
[Result "1/2-1/2"]
[ECO "A48"]
[WhiteElo "2023"]
[BlackElo "2346"]
[Annotator "TA"]
[PlyCount "49"]
[EventDate "2022.07.20"]
[EventType "swiss"]
[EventCountry "CZE"]
[SourceTitle "playchess.com"]
[Source "ChessBase"]
[SourceQuality "1"]
[TimeControl "1200+10"]

{[%evp 9,49,11,29,28,30,30,36,36,43,45,39,45,36,31,28,30,29,20,26,25,19,27,21,19,42,40,48,33,25,17,18,16,7,0,0,0,0,0,0,-2,-7,-2]} 1. d4 {[%emt 0:00:02]} Nf6 {[%emt 0:00:05]} 2. Nf3 {[%emt 0:00:03]} g6 {[%emt 0:00:45]} 3. b3 {[%emt 0:00:03]} Bg7 {[%emt 0:00:12]} 4. Bb2 {[%emt 0:00:03]} O-O {[%emt 0:00:04]} 5. e3 {[%emt 0:00:01]} c5 {[%emt 0:01:30]} 6. dxc5 {[%emt 0:02:16] A48: 1 d4 Nf6 2 Nf3 g6: Torre, London and Colle Systems.} Qa5+ {[%emt 0:00:11]} 7. c3 {[%emt 0:00:24]} Qxc5 {[%emt 0:01:16]} 8. Ba3 {[%emt 0:01:15] White is slightly better.} Qa5 {[%emt 0:00:04]} 9. Bxe7 {[%emt 0:01:24]} Re8 {[%emt 0:00:06]} 10. Bxf6 {[%emt 0:01:00]} Bxf6 {[%emt 0:00:03]} 11. Nd4 {[%emt 0:00:01]} Nc6 {[%emt 0:00:03] [#] Strongly threatening ...Bxd4.} 12. Qd2 {[%emt 0:00:19] [#]} Nxd4 $146 {[%emt 0:03:12]} ({Predecessor:} 12... d5 13. Be2 Bd7 14. O-O Rad8 15. Rc1 Bc8 16. Qb2 h5 17. a4 Qc7 18. Nd2 Bg4 {1-0 (54) Pultinevicius,P (2481)-Antoms,G (2337) Riga 2019}) 13. cxd4 {[%emt 0:00:05]} Qd5 {[%emt 0:00:04] Hoping for ...Qxd4.} 14. Nc3 {[%emt 0:03:18]} Qxd4 {[%emt 0:00:06]} 15. Qxd4 {[%emt 0:00:51]} Bxd4 {[%emt 0:00:02]} 16. Rc1 {[%emt 0:00:02][%cal Ba1c1,Bc1c3,Bc3c7][%mdl 32]} Bxc3+ {[%emt 0:06:45]} 17. Rxc3 {[%emt 0:00:03]} d5 {[%emt 0:00:02][%cal Bd7d5,Bd5d4][%mdl 32]} 18. Bb5 {[%emt 0:03:35]} d4 {[%emt 0:02:46] aiming for ...Re5.} 19. Rc7 {[%emt 0:04:03]} Re5 {[%emt 0:00:08] The position is equal.} 20. Bc4 {[%emt 0:00:05]} Be6 {[%emt 0:02:39]} 21. Bxe6 {[%emt 0:00:05]} Rxe6 {[%emt 0:00:03]} 22. O-O {[%emt 0:00:09]} Ra6 {[%emt 0:02:25]} 23. exd4 {[%emt 0:00:16]} Rxa2 {[%emt 0:00:04]} 24. Rxb7 {[%emt 0:00:04]} Rd8 {[%emt 0:00:36]} 25. Rb4 {[%emt 0:00:24] Weighted Error Value: White=0.02 (flawless) /Black=0.03 (flawless)} ({Don't play} 25. Rd1 {[#]} Rxd4 $1 26. Rf1 a5 $17) 1/2-1/2

[Event "Czech Open-Rapid 2022"]
[Site "Pardubice"]
[Date "2022.07.21"]
[Round "6.21"]
[White "Freibergs, Andrejs"]
[Black "Silar, Lubomir"]
[Result "0-1"]
[ECO "D04"]
[WhiteElo "1574"]
[BlackElo "1993"]
[Annotator "TA"]
[PlyCount "40"]
[EventDate "2022.07.20"]
[EventType "swiss"]
[EventCountry "CZE"]
[SourceTitle "playchess.com"]
[Source "ChessBase"]
[SourceQuality "1"]
[TimeControl "1200+10"]

{[%evp 10,40,12,-13,0,7,13,0,7,-4,12,2,25,4,12,-4,39,12,32,13,16,5,0,0,14,10,13,-55,-51,-74,-37,-186,-208]} 1. d4 {[%emt 0:00:02]} d5 {[%emt 0:00:03]} 2. Nf3 {[%emt 0:00:02]} Nf6 {[%emt 0:00:02]} 3. e3 {[%emt 0:00:01]} g6 {[%emt 0:00:31]} 4. Bd3 {[%emt 0:00:09]} Bg7 {[%emt 0:00:03]} 5. O-O {[%emt 0:00:02]} O-O {[%emt 0:00:05]} 6. b3 {[%emt 0:00:07]} b6 {[%emt 0:00:34] D04: Colle System.} 7. Bb2 {[%emt 0:00:15]} Bb7 {[%emt 0:00:04]} 8. Nbd2 {[%emt 0:00:06]} Nbd7 {[%emt 0:00:16] The position is equal.} 9. Qe2 {[%emt 0:00:43]} c5 {[%emt 0:00:32]} 10. Ne5 {[%emt 0:01:12]} Qc7 {[%emt 0:04:00]} 11. f4 {[%emt 0:00:40]} e6 {[%emt 0:01:33]} 12. c3 {[%emt 0:01:31]} a6 {[%emt 0:00:31]} 13. a4 {[%emt 0:01:01] [#]} Nxe5 $146 {[%emt 0:02:17]} ({Predecessor:} 13... Rfc8 14. Ndf3 h6 15. Nxf7 Kxf7 16. Ne5+ Kg8 17. Nxg6 Re8 18. g4 c4 19. Bb1 cxb3 {½-½ (37) Galvan,G (2366)-Polakovic,P (2341) ICCF corr 1999}) 14. fxe5 {[%emt 0:00:01]} Nd7 {[%emt 0:00:19]} 15. Rf2 {[%emt 0:03:00]} f6 {[%emt 0:01:57]} 16. exf6 {[%emt 0:00:01]} Nxf6 {[%emt 0:00:13]} 17. Raf1 {[%emt 0:00:24]} e5 {[%emt 0:01:40] [#] Hoping for ...e4.} 18. dxe5 {[%emt 0:00:23]} ({Better is} 18. dxc5 $11 e4 19. Bb1) 18... Qxe5 $15 {[%emt 0:00:02]} 19. Nf3 {[%emt 0:01:21]} Qe7 {[%emt 0:00:12] Strongly threatening ...Ng4. Black is more active.} 20. c4 {[%emt 0:00:17]} (20. Ng5 $15) 20... Ng4 $1 {[%emt 0:01:28][%csl LRe3,LRf2] Weighted Error Value: White=0.31/Black=0.14 (very precise)} 0-1

[Event "Czech Open-Rapid 2022"]
[Site "Pardubice"]
[Date "2022.07.21"]
[Round "6.22"]
[White "Dosedel, Jiri"]
[Black "Maul, Maik"]
[Result "1-0"]
[ECO "A00"]
[WhiteElo "2008"]
[BlackElo "1568"]
[Annotator "TA"]
[PlyCount "64"]
[EventDate "2022.07.20"]
[EventType "swiss"]
[EventCountry "CZE"]
[SourceTitle "playchess.com"]
[Source "ChessBase"]
[SourceQuality "1"]
[TimeControl "1200+10"]

{[%evp 9,64,-55,-64,-104,-118,-112,-103,-101,-67,-89,-76,-96,-101,-110,0,-18,0,0,0,0,0,-1,0,0,18,-18,-12,-206,0,0,0,0,20,-109,-99,-105,-110,-129,30,-40,-50,-40,-22,-53,-16,-23,-15,-334,-359,-356,-360,-358,-352,-352,-335,-308,835]} 1. g4 {[%emt 0:00:03]} e5 {[%emt 0:00:12]} 2. Bg2 {[%emt 0:00:02]} d5 {[%emt 0:00:02]} 3. c4 {[%emt 0:00:02]} Be6 {[%emt 0:00:05]} 4. Qb3 {[%emt 0:00:05]} c6 {[%emt 0:00:12]} 5. Qxb7 {[%emt 0:00:14]} Nd7 {[%emt 0:00:01]} 6. cxd5 {[%emt 0:00:08] A00: Irregular Openings.} cxd5 {[%emt 0:00:17] aiming for ...Rc8.} 7. Nc3 {[%emt 0:00:19]} (7. Bxd5 $2 Rb8 8. Qxb8 (8. Qc6 $2 Rc8 $19) 8... Qxb8 9. Bxe6 fxe6 $19) 7... Rb8 {[%emt 0:00:16] [#]} 8. Qxa7 $146 {[%emt 0:00:09] Black is better.} ({Predecessor:} 8. Qa6 Bc5 9. e3 Ne7 10. Qe2 O-O 11. h4 e4 12. f4 f5 13. g5 d4 14. exd4 Bxd4 {0-1 (27) Worzelberger,A (1762)-Balzereit,G (1631) Frankfurt 2018}) 8... Bc5 {[%emt 0:00:02]} 9. Qa4 {[%emt 0:00:08]} Ngf6 {[%emt 0:00:08][%mdl 1024] Black has strong compensation.} 10. h3 {[%emt 0:00:19]} O-O {[%emt 0:00:02] And now ...Qb6 would win.} 11. d3 {[%emt 0:00:34]} Nb6 {[%emt 0:00:52]} (11... Qb6 $17 12. Nd1 Rfc8) 12. Qc2 {[%emt 0:00:05]} d4 {[%emt 0:00:24]} 13. Ne4 {[%emt 0:00:22]} Nxe4 {[%emt 0:00:23]} 14. Bxe4 {[%emt 0:00:03]} Qe7 {[%emt 0:00:02]} 15. Nf3 {[%emt 0:00:09]} Rfc8 {[%emt 0:00:01] Threatens to win with ...Bb4+.} 16. O-O {[%emt 0:00:26]} h5 {[%emt 0:00:14]} 17. Qd2 {[%emt 0:04:13]} (17. Nxe5 $2 Bd6 18. Nc4 (18. Nc6 $2 Qh4 $19) 18... Qh4 $19) 17... hxg4 {[%emt 0:00:13]} 18. Ng5 {[%emt 0:02:49]} (18. hxg4 $11 Bxg4 19. Qg5 Qxg5 20. Nxg5 (20. Bxg5 Nd7 $15)) 18... gxh3 $2 {[%emt 0:00:21]} (18... Bb4 $1 $19 {[%cal Rb4d2]} 19. Qd1 Rxc1 $1 20. Qxc1 Rc8 21. Nxe6 (21. Bh7+ $2 Kh8 $19) 21... Rxc1 22. Rfxc1 fxe6) 19. Nxe6 $11 {[%emt 0:00:16]} Qxe6 {[%emt 0:00:08]} 20. Qg5 {[%emt 0:00:18] Against f5} Be7 {[%emt 0:01:28]} 21. Qh5 {[%emt 0:00:21]} (21. Qf5 $11 {remains equal.} Qxf5 22. Bxf5) 21... g6 $17 {[%emt 0:00:13]} 22. Qh6 {[%emt 0:01:03]} Na4 $36 {[%emt 0:03:09][%mdl 2048] Keeping White busy.} 23. Kh1 {[%emt 0:01:22]} h2 $2 {[%emt 0:01:03] Inhibits Rg1.} (23... Nxb2 24. a4 $11) ({Better is} 23... Bf8 $17 24. Qh4 f5) 24. b3 {[%emt 0:01:27]} (24. Kxh2 $11 Bf8 25. Qh3) 24... Nc3 $15 {[%emt 0:00:06]} 25. Bf3 {[%emt 0:01:06]} f5 {[%emt 0:00:30]} 26. Kxh2 {[%emt 0:03:49]} Kf7 {[%emt 0:00:26][%cal Bg8f7,Bf7e8,Be8d7][%mdl 32] White must now prevent ...Rh8.} 27. Qh7+ {[%emt 0:00:08]} Ke8 {[%emt 0:00:21] ...Kd7 is the strong threat.} 28. Rg1 $2 {[%emt 0:00:20][%mdl 8192] [#]} (28. Kg2 $11 {and White is okay.}) 28... Kd7 $1 $19 {[%emt 0:00:34] Strongly threatening ...Rh8.} ({Weaker is} 28... e4 29. Bf4 (29. dxe4 Kd7 $15) 29... Kd7 30. Bxb8 $14 (30. Rxg6 $2 Rh8 $19)) 29. Rxg6 {[%emt 0:01:45]} Rh8 {[%emt 0:00:01] ( -> ...Qxg6)} 30. Rxe6 {[%emt 0:00:53]} Rxh7+ {[%emt 0:00:01]} 31. Rh6 {[%emt 0:00:01]} Rxh6+ {[%emt 0:00:08]} 32. Bxh6 {[%emt 0:00:02]} Ra8 $4 {[%mdl 8192] Weighted Error Value: White=0.62/Black=0.28 (precise)} 1-0